Cogmind - Beta 17 *** ADVENTURER MODE // 2026.07.19 @ 17:51:23 Player: Asterix Result: Destroyed by IA-UMT(h) with Bore Cannon Performance ------------- Evolutions (1) 500 Regions Visited (5) 1000 Robots Destroyed (73) 365 Value Destroyed (1759) 1759 Prototype IDs (3) 60 Alien Tech Used (0) 0 Bonus (1207) 1207 TOTAL SCORE: 4891 Bonus ------- High Alert Combat Kills 12 Follower Combat Kills 495 Entered Garrisons 200 Used RIF Installer 500 Cogmind --------- Core Integrity 0/400 Matter 390/500 Energy 240/240 System Corruption 1% Temperature Cool (28) Movement Walking (100) Location -9/Garrison Parts ------- > --- POWER (1) -------- Nuclear Core > --- PROPULSION (3) --- Improved Aluminum Leg VSS Leg VSS Leg > --- UTILITY (3) ------ High-capacity Matter Pod Advanced Targeting Computer Advanced Targeting Computer > --- WEAPON (2) ------- Heavy Assault Rifle Bore Cannon > --- INVENTORY (5) ---- Reinforced Ion Engine Aluminum Leg Heavy Assault Rifle Improved Datajack Segregator Peak State ------------ > --- POWER ------------ Nuclear Core > --- PROPULSION ------- Improved Aluminum Leg VSS Leg VSS Leg > --- UTILITY ---------- High-capacity Matter Pod Advanced Targeting Computer Advanced Targeting Computer > --- WEAPON ----------- Heavy Assault Rifle Bore Cannon > --- INVENTORY -------- Reinforced Ion Engine Aluminum Leg Heavy Assault Rifle Improved Datajack Segregator [Rating: 26] Favorites ----------- Power Light Ion Engine Engine Light Ion Engine Power Core Nuclear Core Propulsion Aluminum Leg Treads Light Treads Leg Aluminum Leg Wheel Compact Wheel Hover Unit Backup Propulsion I Flight Unit Flight Unit Utility Advanced Targeting Computer Device Heat Sink Storage High-capacity Matter Pod Processor Advanced Targeting Computer Protection Core Shielding Weapon Heavy Particle Cannon Energy Gun Improved EM Shotgun Energy Cannon Heavy Particle Cannon Ballistic Gun Heavy Assault Rifle Ballistic Cannon Bore Cannon Launcher Rocket Launcher Impact Weapon Heavy Flail Special Melee Weapon Improved Datajack Build | -11 -10 -10 -9 -9 -9 ------- Run | Yrd Mat Min Mat Sto Gar Slots Evolved 2 | . . . 2 . . Power . | . . . . . . Propulsion 1 | . . . 1 . . Utility 1 | . . . 1 . . Weapon . | . . . . . . Parts Attached 68 | 6 1 7 23 19 12 Power 12 | 1 . 2 3 4 2 Engine 11 | 1 . 2 3 4 1 Core 1 | . . . . . 1 Reactor . | . . . . . . Propulsion 21 | 2 . 2 7 6 4 Treads 2 | . . 2 . . . Leg 15 | . . . 5 6 4 Wheel 2 | 2 . . . . . Hover . | . . . . . . Flight 2 | . . . 2 . . Utility 15 | 1 1 1 5 4 3 Device 6 | . . 1 2 3 . Storage 5 | 1 . . 2 1 1 Processor 3 | . . . 1 . 2 Hackware . | . . . . . . Protection 1 | . 1 . . . . Artifact . | . . . . . . Weapon 20 | 2 . 2 8 5 3 Energy Gun 5 | . . . 1 4 . Energy Cannon 1 | . . . 1 . . Ballistic Gun 8 | 2 . 2 2 1 1 Ballistic Cannon 1 | . . . . . 1 Launcher 2 | . . . 2 . . Special Weapon . | . . . . . . Impact Weapon 2 | . . . 2 . . Slashing Weapon . | . . . . . . Piercing Weapon . | . . . . . . Special Melee Weapon 1 | . . . . . 1 Unidentified Prototypes 3 | . . . 1 2 . Parts Lost 8 | . . . 1 7 . Power 1 | . . . . 1 . Propulsion 6 | . . . 1 5 . Utility 1 | . . . . 1 . Weapon . | . . . . . . Highest Loss Streak 3 | . . . 1 3 . To Critical Strikes . | . . . . . . Average Backups 6 | 1 . 6 8 6 4 Power 1 | . . 1 1 1 1 Propulsion 1 | . . 2 1 1 1 Utility . | . . 1 . . . Weapon 2 | . . 1 4 2 2 Tool/Special . | . . . . . . Unused Backups 16 | . . 1 6 4 5 Power 3 | . . . 1 1 1 Propulsion 6 | . . 1 3 . 2 Utility 1 | . . . 1 . . Weapon 6 | . . . 1 3 2 Tool/Special . | . . . . . . Average Slot Usage (%) 93 | . 89 100 86 88 99 Engine 7 | . 14 14 11 10 1 Core 3 | . . . . . 9 Treads 5 | . . 16 16 . . Leg 20 | . . . 5 28 33 Wheel 1 | . 28 11 . . . Device 8 | . . 8 8 13 5 Storage 12 | . 14 14 11 14 11 Processor 6 | . . . 1 . 16 Protection 2 | . 4 5 8 . . Energy Gun 2 | . . . 2 4 2 Energy Cannon 5 | . . . . 6 9 Ballistic Gun 10 | . 28 28 11 2 7 Impact Weapon 2 | . . . 5 3 . Peak Build Rating 26 | 6 7 8 17 17 26 Average Rating 15 | 4 6 7 12 14 22 On Entrance 8 | . 6 7 8 17 14 Avg Prop Armor Cover (%) . | . . . . . . Naked Turns . | . . . . . . Heaviest Build 28 | 10 11 13 28 28 24 Greatest Support 40 | 32 32 40 40 36 37 Greatest Overweight (x) 3 | . . . 3 1 . Average Overweight (x) . | . . . . . . Largest Inventory Capacity 10 | 8 8 8 10 10 5 Average Capacity 6 | 7 8 8 9 6 5 Most Carried 10 | 5 1 8 10 10 5 Average Carried 6 | 1 . 7 8 6 4 Final Capacity 10 | 8 8 8 10 5 5 Final Carried 10 | . . 8 10 5 5 Class Distribution -------------------- 66% | Scavenger-Mutant 27% | Mutant 5% | Commander-Mutant Dominant Class ---------------- Mutant | -10/Materials Mutant | -10/Mines Mutant | -9/Materials Scavenger-Mutant | -9/Storage Scavenger-Mutant | -9/Garrison Resources | -11 -10 -10 -9 -9 -9 ----------- Run | Yrd Mat Min Mat Sto Gar Matter Collected 1806 | 213 . 190 509 502 392 Remotely . | . . . . . . Salvage Created 2166 | . . 155 619 858 534 Parts 154 | . . 20 56 43 35 Haulers Intercepted 3 | . . . 1 2 . Recyclers Shooed 1 | . . . . 1 . Parts Field Recycled . | . . . . . . Retrieved Matter . | . . . . . . Parts Self-Destructed . | . . . . . . Prevented . | . . . . . . Parts Restored . | . . . . . . Kills | -11 -10 -10 -9 -9 -9 ------- Run | Yrd Mat Min Mat Sto Gar Combat Hostiles Destroyed 59 | . . 8 17 18 16 Melee 3 | . . . 1 2 . Guns 33 | . . 8 9 8 8 Cannons 13 | . . . 1 4 8 AOE 8 | . . . 5 3 . Classes Destroyed 13 | . . 2 8 1 2 Worker 1 | . . . 1 . . Builder 4 | . . . 3 1 . Tunneler 1 | . . . 1 . . Hauler 3 | . . . 1 2 . Recycler 2 | . . . 1 1 . Mechanic 1 | . . . 1 . . Watcher 1 | . . . 1 . . Swarmer 23 | . . 6 7 . 10 Grunt 24 | . . 2 9 10 3 Brawler 1 | . . . . 1 . Sentry 9 | . . . 1 7 1 Specialist 2 | . . . . . 2 Guerrilla 1 | . . . . . 1 Best Kill Streak 10 | . . 3 10 6 4 Combat Bots Only 5 | . . 3 4 5 4 Max Kills in Single Turn 3 | . . 2 3 2 1 Gunslinging 1 | . . 1 . . . Exploded 3 | . . . 3 2 . Melee 1 | . . . 1 1 . Uniques/NPCs Destroyed . | . . . . . . Combat | -11 -10 -10 -9 -9 -9 -------- Run | Yrd Mat Min Mat Sto Gar Hostile Shots Fired 320 | . . 36 60 92 132 Missed 94 | . . 9 18 22 45 Hits 226 | . . 27 42 70 87 Melee 1 | . . . . 1 . Projectile 225 | . . 27 42 69 87 Critical Strikes 5 | . . 1 . 1 3 Damage Taken 2197 | . . 186 398 897 716 Core 440 | . . 38 19 236 147 Absorbed by Shields . | . . . . . . Redirected to Shielding 5 | . . 3 2 . . Ignored by Resistances 672 | . . 66 128 259 219 Regen/Repaired (Parts) 68 | . . . 68 . . Core Remaining (%) 92 | 100 . 84 . . . Volleys Fired 188 | . . 20 34 71 63 Largest 2 | . . 2 2 2 2 Hottest 125 | . . 43 75 125 120 Shots Fired 280 | . . 40 42 87 111 Gun 166 | . . 40 34 44 48 Cannon 95 | . . . 2 30 63 Launcher 19 | . . . 6 13 . Special . | . . . . . . Kinetic 139 | . . 40 32 23 44 Thermal 92 | . . . 2 39 51 Explosive 19 | . . . 6 13 . Electromagnetic 30 | . . . 2 12 16 Robot Hit Streak 26 | . . 18 26 14 16 Robot Miss Streak 4 | . . 3 1 4 4 Penetration Max . | . . . . . . Secondary Targets 1 | . . 1 . . . Max Gunslinging Chain 1 | . . 1 . . . Shots Hit Robots 194 | . . 31 39 67 57 Core Hits 106 | . . 11 32 38 25 Critical Kills . | . . . . . . Critical Parts Destroyed 4 | . . . 1 1 2 Critical Strikes 7 | . . . 1 2 4 Destroy 4 | . . . . . 4 Smash 3 | . . . 1 2 . Melee Attacks 18 | . . . 8 9 1 Impact 17 | . . . 8 9 . Slashing . | . . . . . . Piercing . | . . . . . . Sneak Attacks 2 | . . . 1 1 . Combat Hostiles . | . . . . . . Follow-up Attacks . | . . . . . . Damage Inflicted 4973 | . . 355 1526 1884 1208 Guns 1762 | . . 349 479 483 451 Cannons 1241 | . . . 50 500 691 Explosions 1201 | . . . 649 486 66 Melee 757 | . . . 348 409 . Ramming 12 | . . 6 . 6 . Kinetic 1425 | . . 349 454 193 429 Thermal 1372 | . . . 143 638 591 Explosive 1009 | . . . 556 453 . Electromagnetic 398 | . . . 25 185 188 Impact 757 | . . . 348 409 . Slashing . | . . . . . . Piercing . | . . . . . . Highest Corruption 1 | . . . . . 1 Average Corruption 1 | . . . . . 1 Corruption Purged . | . . . . . . Corruption Blocked . | . . . . . . Overload Shots . | . . . . . . Overflow Damage 215 | . . . 101 109 5 Projectiles 10 | . . . . 5 5 Explosions 11 | . . . 8 3 . Melee 194 | . . . 93 101 . Knockbacks 3 | . . . 1 2 . Impact 3 | . . . 1 2 . Kinetic . | . . . . . . Secondary . | . . . . . . Self-Inflicted Damage 293 | . . . 110 163 20 Shots 14 | . . . 5 8 1 Rammed 3 | . . 3 . . . Targets Rammed 4 | . . 3 . 1 . Kicked 1 | . . . . 1 . Crushed . | . . . . . . Highest Temperature 476 | . . . 56 302 476 Average Temperature 82 | . . . 17 96 82 Received Heat Transfer 663 | . . 84 105 387 87 Effects 3 | . . . . . 3 Shutdowns 2 | . . . . . 2 Matter Decay 1 | . . . . . 1 Siege Activations . | . . . . . . Martial Activations . | . . . . . . Shielding Activations . | . . . . . . Robots Disrupted . | . . . . . . Combat Hostiles . | . . . . . . Robots Corrupted 3 | . . . 1 2 . Combat Hostiles 2 | . . . 1 1 . Parts Fried 4 | . . . . 4 . Impact Corruptions 7 | . . . 2 5 . Robots Melted . | . . . . . . Combat Hostiles . | . . . . . . Parts Melted 2 | . . . . 2 . Heat Transferred 2130 | . . . 224 1049 857 Parts Sabotaged . | . . . . . . Parts Stolen . | . . . . . . Parts Stripped . | . . . . . . Power Chain Reactions 3 | . . . 1 1 1 Alert | -11 -10 -10 -9 -9 -9 ------- Run | Yrd Mat Min Mat Sto Gar Maximum Alert Level 3 | . . . 1 1 3 Low Security (%) 50 | 100 100 100 74 57 10 Level 1 28 | . . . 25 42 32 Level 2 17 | . . . . . 45 Level 3 4 | . . . . . 12 Level 4 . | . . . . . . Level 5 . | . . . . . . High Security . | . . . . . . Max Security . | . . . . . . Peak Influence 904 | . 1 70 289 311 904 Initial 103 | . . . 9 103 96 Average 231 | . . 24 91 192 424 Influence Increases 2545 | . 1 200 599 757 988 Destroy 0b10 Robot/C 1600 | . . 180 360 440 620 Destroy 0b10 Robot/NC 65 | . . . 45 20 . Destroy Leader 258 | . . 20 74 124 40 Allied During Kill 62 | . . . . 32 30 Trap Triggered on 0b10 20 | . . . . 20 . Successful Hack 56 | . 1 . 22 15 18 Disable Machine 63 | . . . 9 45 9 Anti-Garrison Action 150 | . . . . . 150 Destroy Structure 211 | . . . 59 61 91 Lose Combat Pursuer 60 | . . . 30 . 30 Influence Decreases 1621 | . 1 170 340 876 234 Entered New Map 281 | . . . 21 186 74 Time Decay 880 | . 1 170 289 420 . Lost Part 80 | . . . 10 70 . Lost Ally 230 | . . . 20 50 160 Purge Threat 150 | . . . . 150 . Squads Dispatched 7 | . . 1 3 3 . Investigation 6 | . . . 3 3 . Extermination . | . . . . . . Reinforcement . | . . . . . . Assault 1 | . . 1 . . . Garrison . | . . . . . . Intercept . | . . . . . . Searches Triggered . | . . . . . . Construction Impeded . | . . . . . . Haulers Reinforced . | . . . . . . Active Scanning Responses . | . . . . . . Cargo Convoy Interrupts . | . . . . . . Stealth | -11 -10 -10 -9 -9 -9 --------- Run | Yrd Mat Min Mat Sto Gar Distress Signals 5 | . . . 2 3 . Communications Jammed . | . . . . . . Distress Signals . | . . . . . . Times Spotted 94 | . . 10 22 28 34 Peak Tracking Total 6 | . . 3 4 3 6 Tactical Retreats 5 | . . . 2 2 1 ECM-based Alert Blocks 3 | . . . . 3 . Traps | -11 -10 -10 -9 -9 -9 ------- Run | Yrd Mat Min Mat Sto Gar Traps Triggered 2 | . . . . . 2 Indirectly . | . . . . . . Trap Hack Attempts . | . . . . . . Triggered . | . . . . . . Disarmed . | . . . . . . Reprogrammed 3 | . . . . 3 . Reused 2 | . . . . 2 . Traps Extracted . | . . . . . . Installed . | . . . . . . Triggered 2 | . . . . 2 . Machines | -11 -10 -10 -9 -9 -9 ---------- Run | Yrd Mat Min Mat Sto Gar Machines Disabled 7 | . . . 1 5 1 Max in Single Turn 1 | . . . 1 1 1 Machines Repaired . | . . . . . . Machines Dismantled . | . . . . . . Machines Sabotaged . | . . . . . . Overloaded Fab Kills . | . . . . . . Hacking | -11 -10 -10 -9 -9 -9 --------- Run | Yrd Mat Min Mat Sto Gar Machines Accessed 18 | . 1 . 5 9 3 Terminals 16 | . 1 . 4 8 3 Fabricators . | . . . . . . Repair Stations 1 | . . . 1 . . Recycling Units . | . . . . . . Scanalyzers . | . . . . . . Garrison Access 1 | . . . . 1 . Total Hacks 54 | . 3 . 17 27 7 Successful 29 | . 3 . 10 13 3 Failed 25 | . . . 7 14 4 Catastrophic 3 | . . . 2 1 . Database Lockouts . | . . . . . . Manual . | . . . . . . Terminals 44 | . 3 . 10 24 7 Fabricators . | . . . . . . Repair Stations 7 | . . . 7 . . Recycling Units . | . . . . . . Scanalyzers . | . . . . . . Garrison Access 3 | . . . . 3 . Terminal Hacks 21 | . 3 . 3 12 3 Record 2 | . 1 . . 1 . Part Schematic 4 | . . . . 4 . Robot Analysis 1 | . . . . 1 . Open Door 2 | . . . . 1 1 Emergency Access Points 1 | . . . . 1 . Alert Level 2 | . 2 . . . . Unreport Threat 1 | . . . . 1 . Locate Traps 1 | . . . . 1 . Reprogram Traps 1 | . . . . 1 . Reinforcement Status 1 | . . . . 1 . Recall Investigation 1 | . . . 1 . . Zone Layout 2 | . . . 2 . . Garrison Registry 2 | . . . . . 2 Fabricator Hacks . | . . . . . . Repair Station Hacks 7 | . . . 7 . . Scan Component 3 | . . . 3 . . Repair 3 | . . . 3 . . Refit 1 | . . . 1 . . Recycling Unit Hacks . | . . . . . . Scanalyzer . | . . . . . . Garrison Access Hacks 1 | . . . . 1 . Unlock Access 1 | . . . . 1 . Unauthorized Hacks . | . . . . . . Terminals . | . . . . . . Fabricators . | . . . . . . Repair Stations . | . . . . . . Recycling Units . | . . . . . . Scanalyzers . | . . . . . . Garrison Access . | . . . . . . Data Cores Recovered . | . . . . . . Used . | . . . . . . Hacking Detections 16 | . 1 . 5 7 3 Full Trace Events 8 | . 1 . 3 3 1 Feedback Events . | . . . . . . Feedback Blocked . | . . . . . . Robot Schematics Acquired . | . . . . . . Robots Built . | . . . . . . Authchips . | . . . . . . Time . | . . . . . . Total Robot Build Rating . | . . . . . . Part Schematics Acquired 4 | . . . . 4 . Parts Built . | . . . . . . Authchips . | . . . . . . Time . | . . . . . . Total Part Build Rating . | . . . . . . Part Studies Acquired . | . . . . . . Parts Repaired 2 | . . . 2 . . Time 78 | . . . 78 . . Parts Recycled . | . . . . . . Recycled Matter . | . . . . . . Retrieved Matter . | . . . . . . Retrieved Components . | . . . . . . Parts Scanalyzed . | . . . . . . Part Schematics Acquired . | . . . . . . Parts Damaged . | . . . . . . Bothacking | -11 -10 -10 -9 -9 -9 ------------ Run | Yrd Mat Min Mat Sto Gar Used RIF Installer 1 | . . . . . 1 Robots Hacked 1 | . . . . . 1 Non-combat . | . . . . . . Combat 1 | . . . . . 1 Robot Hacks Applied 1 | . . . . . 1 parse_system 1 | . . . . . 1 Relay Couplers Released . | . . . . . . Fabnet Peak Effective % . | . . . . . . Robots Rewired 7 | . . . . . 7 Allies Hacked . | . . . . . . Hacks Repelled . | . . . . . . Allies | -11 -10 -10 -9 -9 -9 -------- Run | Yrd Mat Min Mat Sto Gar Total Allies 18 | . . 1 . 10 7 Largest Group 10 | . . 1 1 10 5 Highest-Rated Group 109 | . . 31 31 88 109 Highest-Rated Ally 39 | . . 31 31 16 39 Total Orders . | . . . . . . Ally Attacks 83 | . . 3 4 17 59 Total Damage 945 | . . 44 66 137 698 Kills 21 | . . 1 1 4 15 Allies Corrupted . | . . . . . . Allies Melted . | . . . . . . Intel | -11 -10 -10 -9 -9 -9 ------- Run | Yrd Mat Min Mat Sto Gar Active Infowar (turns) 405 | . . . 161 244 . Terrain 292 | . . . 161 131 . ECM 113 | . . . . 113 . Robot Analysis Total 1 | . . . . 1 . Derelict Logs Recovered 1 | . . 1 . . . Drone Launches 2 | . . . . 2 . Drone Recoveries 1 | . . . . 1 . Exploration | -11 -10 -10 -9 -9 -9 ------------- Run | Yrd Mat Min Mat Sto Gar Turns Passed 3599 | 38 66 442 839 842 1372 Spaces Moved 2235 | 31 65 274 407 469 989 Core 19 | 9 . . . 10 . Treads 443 | . . 132 311 . . Legs 1456 | . . . 93 374 989 Wheels 229 | 22 65 142 . . . Hover 2 | . . . 2 . . Flight 86 | . . . 1 85 . Fastest Speed 37 | 50 100 100 120 37 100 Average Speed 116 | 85 100 128 155 104 105 Slowest Speed 340 | 100 100 160 340 120 120 Overloaded Moves . | . . . . . . Propulsion Burnouts . | . . . . . . Robots Hopped . | . . . . . . Potential Cave-ins 4 | . . . 4 . . Cave-ins Triggered . | . . . . . . Exploration Rate (%) 44 | 3 21 60 33 69 80 Regions Visited 5 Branch Regions 2 Pre-discovered Areas . | . . . . . . Known Exits Taken 1 | . . . . 1 . Unknown Exits Taken 4 | 1 1 1 1 . . Scrap Searched 2 | . . 2 . . . Spaces Dug 1 | . . . . 1 . Terrain Destroyed 166 | . . . 72 94 . Melee . | . . . . . . Projectile 7 | . . . . 7 . AOE 159 | . . . 72 87 . Terrain Rammed . | . . . . . . Walls Destroyed . | . . . . . . Machines Disabled . | . . . . . . Actions | -11 -10 -10 -9 -9 -9 --------- Run | Yrd Mat Min Mat Sto Gar Total 2945 | 42 66 330 576 725 1206 Wait 212 | . . 8 45 111 48 Move 2231 | 30 64 273 406 469 989 Hop . | . . . . . . Pick Up 57 | 6 1 11 22 10 7 Fast Attach 24 | . . 1 9 7 7 Attach 25 | 6 1 1 7 10 . Detach 3 | . . . 2 1 . Swap 53 | . . 5 16 15 17 Drop 74 | . . 8 27 21 18 Fire 188 | . . 20 34 71 63 Melee 18 | . . . 8 9 1 Ram . | . . . . . . Kick 1 | . . . . 1 . Crush 3 | . . 3 . . . Escape Stasis 9 | . . . . . 9 Rewire 47 | . . . . . 47 Trap . | . . . . . . Miscellaneous . | . . . . . . Route ------- -11/Scrapyard -10/Materials -10/Mines (discovered 2 exits: *Mat x2) -9/Materials -9/Storage (discovered 2 exits: [*Mat] / Gar) -9/Garrison (discovered 3 exits: [*Mat x3]) History --------- Turn | Location | Event 23 | -11/Scrapyard | Discovered new exit (range 15) 39 | -11/Scrapyard | Entered Materials 95 | -10/Materials | Discovered new exit (range 11) 105 | -10/Materials | Entered Mines 172 | -10/Mines | Learned Materials stockpile data 174 | -10/Mines | Discovered new exit (range 5) 252 | -10/Mines | Joined a pair of Derelicts in attacking an 0b10 outpost 305 | -10/Mines | Build established: Mutant 320 | -10/Mines | Received a Rocket Launcher from a helpful Derelict 361 | -10/Mines | Discovered new exit (range 6) 423 | -10/Mines | Met a Derelict testing a Signal Generator 547 | -10/Mines | Entered Materials 547 | -9/Materials | Accompanied by 1 ally 547 | -9/Materials | Evolved 2 slots: Propulsion x1, Utility x1 914 | -9/Materials | Repaired Lgt. Treads 923 | -9/Materials | Repaired Lgt. Cannon 1335 | -9/Materials | Discovered new exit (range 9) 1386 | -9/Materials | Entered Storage 1499 | -9/Storage | Build established: Scavenger-Mutant 1672 | -9/Storage | Lost 3 parts (3n) 1728 | -9/Storage | Core integrity fell below 50% 1758 | -9/Storage | Lost 3 parts (1p2n) 2039 | -9/Storage | Discovered new exit (range 6) 2049 | -9/Storage | Assisted by bots powering up and referring to "LRC-V3" 2228 | -9/Storage | Identified exit to Garrison 2228 | -9/Storage | Entered Garrison 2228 | -9/Garrison | Accompanied by 5 allies 2288 | -9/Garrison | Triggered checkpoint 2402 | -9/Garrison | Discovered new exit (range 76) 2402 | -9/Garrison | Discovered new exit (range 14) 2402 | -9/Garrison | Discovered new exit (range 71) 2494 | -9/Garrison | Triggered checkpoint 2690 | -9/Garrison | Triggered checkpoint 2750 | -9/Garrison | Core integrity fell below 20% 2877 | -9/Garrison | Discovered new exit (range 76) 2877 | -9/Garrison | Discovered new exit (range 14) 2877 | -9/Garrison | Discovered new exit (range 71) 3020 | -9/Garrison | Triggered checkpoint 3064 | -9/Garrison | Lost 4 allies 3210 | -9/Garrison | Triggered checkpoint 3230 | -9/Garrison | Triggered checkpoint 3290 | -9/Garrison | Triggered checkpoint 3504 | -9/Garrison | Triggered checkpoint 3526 | -9/Garrison | Installed Relay Interface Framework 3589 | -9/Garrison | P-60 Hacker assimilated allied VW-71L(g) 3600 | -9/Garrison | Destroyed by IA-UMT(h) with Bore Cannon Last Messages --------------- Destroyed Flight Unit. S-10 Pest knocked back. P-60 Hacker hacks VW-71L(g), assimilated. P-60 Hacker fails to hack IA-UMT(h). Attempting to rewire VW-71L(g). VW-71L(g) is rebooting, system inaccessible. P-60 Hacker fails to hack IA-UMT(h). Attempting to rewire VW-71L(g). VW-71L(g) is rebooting, system inaccessible. HV Slug penetrates S-10 Pest. S-10 Pest destroyed. VW-71L(g) reactivates. HV Slug penetrates P-60 Hacker. P-60 Hacker suffers critical hit (Destroy). Destroyed Gravmag System. P-60 Hacker destroyed. HV Slug penetrates VW-71L(g). VW-71L(g) suffers critical hit (Destroy). VW-71L(g) destroyed. Penetrated by HV Slug. Map ----- +----------------------------------------------------+ | ?#######??# #???#*%%#????????# ## ##### #??????# | | ??????????# #???##[##????????# ## #???# ######## | | ?????????##!##???#=#?????????# ## #???# ## =%=## | | ?????????#! ##??# #?????????#%"## #??## ## !%## | | ?????????# =!#### ###########[%##+#### [ | | ?????????# ^ [!= + " | | ?????????# [ !####*########### | | ?????????#[ !##??#%#?????????########## ## ## | | ?????????#####???###????????????????### ## ## | | ????????????????????????????????????# | | ????????????????????????????????????# | | ????????????????????????????????????# | | ????????????????????????????????????# | | ????????????????????????????????????### ## ## | | ????????????????????????############### ## ## | | ????????????????????????# | | ????????????????????????# | | ????????????????????????# | | ????????????????????????# #### #######+### =[%## | | ????????????????????????# #??# T#????# #?#*% #? | | ????????????????????????# #??# ##????# #?#"####? | | ????????????????????????# #??# #?????# ### #???? | | ????????????????????????# #??# #?????# #???? | | ?????????????????######## #### #?????# #####???? | | ?????????????????#= #?????# #???????? | | ?????????????????# ######@%h####+#?????# #???????? | | ??????????######## ###??# * #??# #?????# #??????## | | ??????????#"""" ##^* ####%*%#### ####### #??????# | | ??????????#" =% + += %+ #??????# | | ??????????#"""" ## #### ########## ###??????## | | ??????????######## ###??# #????????# #?????????? | | ?????????????????# #????# #?????####+####??????? | | ???????????####### #????# #?????#!! ^ ]]#??????? | | ???????????#"""""" #????# #???###!! ]]###????? | | ???????????#" #????# #???# + + #????? | | ???????????#" #????#% #???###]] !!###????? | | ???????????####/####????#% #?????#]] ^ !!#??????? | | ??????????????# #???????#%% #?????####+####??????? | | ??????????????# #???????#%%[#????????# #?????????? | | ??????????????# #??????##%=%########## #?????????? | | ?????????????## ##?????# % + #?????????? | | ?????????????#! !#?????## ############?????????? | | ?????????????#! !#??????# #????????????????????? | | ?????????????#! !#??????# #????????????????????? | | ?????????????#####??????# #????????????????????? | | ????????????????????????# #????????????????????? | | ?????????????????######## #????????????????????? | | ?????????????????# # ## #????????????????????? | | ?????????????????# + ## ###??????????????????? | | ?????????????????#+##+### #??????????????????? | +----------------------------------------------------+ Best States ------------- Heat Dissipation 38 Energy Generation 14 Energy Capacity 465 Matter Stores 500 Matter Capacity 500 Sight Range 16 Terrain Scan Range 14 Terrain Scan Density 85 ECM Strength 1 Additional Mass Support 6 Resistance: KI 20 Resistance: TH 20 Resistance: EX 20 Resistance: EM 20 Resistance: I 20 Resistance: S 20 Resistance: P 20 Core Shielding 20 Evasion (%) 62 Targeting Accuracy 16 Recoil Reduction 2 Offensive Hacking 10 Item Schematics ----------------- Hvy. Rocket Launcher | -9/Storage | Hacked Gatling Laser | -9/Storage | Hacked Arm. Treads | -9/Storage | Hacked Weight Redist. System | -9/Storage | Hacked Robot Schematics ------------------ None Fabricated ------------ Nothing Repaired ---------- Lgt. Treads | 51% | -9/Materials Studied --------- None Alien Tech Used ----------------- None Achievements -------------- A New Friend Fitting Room For Emergencies Only Join The Dark Side Novice Programmer Organ Harvest Overwhelming Resistances Are Futile Challenges ------------ None Game ------ Seed BeamBorgDisintegrator Manual? 0 Play Time 01:18:46 Cumulative 11.3 hours Start 2026.07.09 @ 18:10:20 End 2026.07.19 @ 17:51:23 Sessions 19 Manual Loads 0 Difficulty Adventurer Special Mode None Game No. 14 Rogue 9 Adventurer 5 Explorer 0 Win Type - Total 0 Types 0/0/0/0/0/0/0/0/0/0 Lore% 10 Gallery% 13 Achievement% 10 Wizard Run 0 Options --------- Layout 1 ASCII 0 Keyboard 0 Movement Mouse Keybinds 0 Fullscreen 1 Font 32/SmallcapsGlow Map View 50x40 Zoom Use 0% Tactical HUD 0 Map Filters NONE Filters NONE Steam 1 RUN: 837ff67c-62f9-4cdb-8f5f-23b68db0bda3